[Event "*** Titled Tuesday Blitz"]
[Site "Chess.com"]
[Date "2019.06.04"]
[Round "1"]
[White "Oleg_Papayan"]
[Black "albano87"]
[Result "1/2-1/2"]
[WhiteElo "2548"]
[BlackElo "2170"]
[TimeControl "180+2"]
[EndTime "13:09:14 PDT"]
[Termination "Game drawn by repetition"]

1. e4 {[%clk 0:03:01.9]} 1... c5 {[%clk 0:02:33.1]} 2. Nf3 {[%clk 0:02:59.9]}
2... Nc6 {[%clk 0:02:11.1]} 3. d4 {[%clk 0:03:00.8]} 3... cxd4 {[%clk
0:02:11.9]} 4. Nxd4 {[%clk 0:03:02.7]} 4... Nf6 {[%clk 0:02:13.1]} 5. Nc3 {[%clk
0:03:03.8]} 5... d6 {[%clk 0:02:14.3]} 6. Be3 {[%clk 0:03:04.4]} 6... Ng4 {[%clk
0:02:15.3]} 7. Bc1 {[%clk 0:02:57.8]} 7... Qb6 {[%clk 0:02:15.9]} 8. Bb5 {[%clk
0:01:54.4]} 8... Bd7 {[%clk 0:02:14.5]} 9. Bxc6 {[%clk 0:01:49.4]} 9... bxc6
{[%clk 0:02:14.9]} 10. O-O {[%clk 0:01:48.9]} 10... g6 {[%clk 0:02:12.7]} 11. h3
{[%clk 0:01:47.6]} 11... Ne5 {[%clk 0:02:06.3]} 12. Kh1 {[%clk 0:01:44.1]} 12...
Bg7 {[%clk 0:02:06.6]} 13. Nb3 {[%clk 0:01:43.7]} 13... Nc4 {[%clk 0:02:02.4]}
14. Qe2 {[%clk 0:01:42.6]} 14... Na5 {[%clk 0:01:57.3]} 15. Be3 {[%clk
0:01:41.6]} 15... Qc7 {[%clk 0:01:53.6]} 16. f4 {[%clk 0:01:42.1]} 16... O-O
{[%clk 0:01:52.8]} 17. f5 {[%clk 0:01:41.4]} 17... Rab8 {[%clk 0:01:09.8]} 18.
Bg5 {[%clk 0:01:11.8]} 18... Rfe8 {[%clk 0:00:58.4]} 19. f6 {[%clk 0:01:12.2]}
19... exf6 {[%clk 0:00:58.7]} 20. Bxf6 {[%clk 0:01:14.1]} 20... Be6 {[%clk
0:01:00]} 21. Bxg7 {[%clk 0:01:14]} 21... Kxg7 {[%clk 0:01:00.8]} 22. Qf2 {[%clk
0:01:12.3]} 22... Nc4 {[%clk 0:00:57.6]} 23. Rab1 {[%clk 0:01:09.1]} 23... Qe7
{[%clk 0:00:52.7]} 24. Nd4 {[%clk 0:01:08.3]} 24... Ne5 {[%clk 0:00:50]} 25.
Nf5+ {[%clk 0:01:09]} 25... Bxf5 {[%clk 0:00:50.2]} 26. exf5 {[%clk 0:01:10.9]}
26... Qg5 {[%clk 0:00:37.3]} 27. Ne4 {[%clk 0:01:10.3]} 27... Qxf5 {[%clk
0:00:34.6]} 28. Qxf5 {[%clk 0:01:10.5]} 28... gxf5 {[%clk 0:00:35.8]} 29. Nxd6
{[%clk 0:01:12.4]} 29... Re6 {[%clk 0:00:34.7]} 30. Nxf5+ {[%clk 0:01:13.3]}
30... Kg6 {[%clk 0:00:36.3]} 31. b3 {[%clk 0:01:10.9]} 31... Rd8 {[%clk
0:00:34.6]} 32. Ne3 {[%clk 0:00:55.9]} 32... Rd2 {[%clk 0:00:28.5]} 33. Rbd1
{[%clk 0:00:56.2]} 33... Red6 {[%clk 0:00:27.9]} 34. Kg1 {[%clk 0:00:47.4]}
34... c5 {[%clk 0:00:27.8]} 35. Rfe1 {[%clk 0:00:43.9]} 35... c4 {[%clk
0:00:23.8]} 36. Rxd2 {[%clk 0:00:44.4]} 36... Rxd2 {[%clk 0:00:25.6]} 37. Nf1
{[%clk 0:00:43.2]} 37... Rd5 {[%clk 0:00:27.1]} 38. Ne3 {[%clk 0:00:41.9]} 38...
Rd2 {[%clk 0:00:27.5]} 39. bxc4 {[%clk 0:00:42.6]} 39... Rd4 {[%clk 0:00:25.8]}
40. c5 {[%clk 0:00:35.8]} 40... Nc4 {[%clk 0:00:25]} 41. Rd1 {[%clk 0:00:29]}
41... Re4 {[%clk 0:00:22]} 42. Nd5 {[%clk 0:00:15.4]} 42... Ne5 {[%clk
0:00:17.1]} 43. Ne7+ {[%clk 0:00:06.8]} 43... Kf6 {[%clk 0:00:17.4]} 44. Nd5+
{[%clk 0:00:08.5]} 44... Kg6 {[%clk 0:00:17.8]} 45. Ne7+ {[%clk 0:00:09.6]}
45... Kf6 {[%clk 0:00:19.1]} 46. Nd5+ {[%clk 0:00:11.5]} 46... Kg6 {[%clk
0:00:20.3]} 1/2-1/2

[Event "*** Titled Tuesday Blitz"]
[Site "Chess.com"]
[Date "2019.06.04"]
[Round "1"]
[White "SoltaniciR"]
[Black "dereito"]
[Result "1-0"]
[WhiteElo "2601"]
[BlackElo "2227"]
[TimeControl "180+2"]
[EndTime "13:09:21 PDT"]
[Termination "SoltaniciR won by checkmate"]

1. e4 {[%clk 0:03:00.5]} 1... d5 {[%clk 0:03:00.9]} 2. exd5 {[%clk 0:03:00.9]}
2... Qxd5 {[%clk 0:03:00.4]} 3. Nc3 {[%clk 0:03:02.4]} 3... Qd6 {[%clk
0:03:00.4]} 4. d4 {[%clk 0:03:02.1]} 4... Nf6 {[%clk 0:03:01]} 5. Nf3 {[%clk
0:03:02.9]} 5... g6 {[%clk 0:03:02]} 6. Nb5 {[%clk 0:03:00.9]} 6... Qb6 {[%clk
0:03:00.3]} 7. Na3 {[%clk 0:02:58.8]} 7... Be6 {[%clk 0:02:59.2]} 8. c3 {[%clk
0:02:55.6]} 8... Bg7 {[%clk 0:02:59.7]} 9. Nc4 {[%clk 0:02:56.1]} 9... Bxc4
{[%clk 0:03:00.2]} 10. Bxc4 {[%clk 0:02:56.6]} 10... O-O {[%clk 0:03:02.1]} 11.
O-O {[%clk 0:02:57.6]} 11... Rd8 {[%clk 0:03:03.1]} 12. Qe2 {[%clk 0:02:41.1]}
12... e6 {[%clk 0:03:02.9]} 13. Bg5 {[%clk 0:02:35.2]} 13... Re8 {[%clk
0:02:59]} 14. Rfe1 {[%clk 0:02:22.4]} 14... c5 {[%clk 0:03:00.1]} 15. dxc5
{[%clk 0:02:00.1]} 15... Qxc5 {[%clk 0:03:02]} 16. Bh4 {[%clk 0:01:38.7]} 16...
Nc6 {[%clk 0:02:58.6]} 17. Rad1 {[%clk 0:01:39.5]} 17... Qh5 {[%clk 0:02:57.2]}
18. h3 {[%clk 0:01:30.1]} 18... Rad8 {[%clk 0:02:34]} 19. Bb5 {[%clk 0:01:31.1]}
19... Rxd1 {[%clk 0:02:21]} 20. Rxd1 {[%clk 0:01:31.9]} 20... Nd5 {[%clk
0:02:20.9]} 21. Bg3 {[%clk 0:01:29.4]} 21... Rc8 {[%clk 0:01:56]} 22. a3 {[%clk
0:01:22.2]} 22... Nce7 {[%clk 0:01:53.7]} 23. Ne5 {[%clk 0:01:11.3]} 23... Qxe2
{[%clk 0:01:46]} 24. Bxe2 {[%clk 0:01:13.2]} 24... Nf5 {[%clk 0:01:44.4]} 25.
Bh2 {[%clk 0:01:14.7]} 25... Nb6 {[%clk 0:01:33.4]} 26. Bf3 {[%clk 0:01:00.3]}
26... Na4 {[%clk 0:01:21.1]} 27. Rd2 {[%clk 0:00:53.3]} 27... b6 {[%clk
0:01:17.1]} 28. Bb7 {[%clk 0:00:48.3]} 28... Rb8 {[%clk 0:01:12]} 29. Bc6 {[%clk
0:00:48.5]} 29... Nc5 {[%clk 0:01:11.3]} 30. Nd7 {[%clk 0:00:42.9]} 30... Rc8
{[%clk 0:01:08.9]} 31. Nxc5 {[%clk 0:00:42.8]} 31... Rxc6 {[%clk 0:01:09.7]} 32.
Rd8+ {[%clk 0:00:42.7]} 32... Bf8 {[%clk 0:01:10.6]} 33. Nd7 {[%clk 0:00:43.9]}
33... Kg7 {[%clk 0:00:49.2]} 34. Be5+ {[%clk 0:00:44.2]} 34... Kh6 {[%clk
0:00:36.6]} 35. Rxf8 {[%clk 0:00:45.3]} 35... Nd6 {[%clk 0:00:27.3]} 36. Bxd6
{[%clk 0:00:46.3]} 36... Rxd6 {[%clk 0:00:19.6]} 37. Rxf7 {[%clk 0:00:47.8]}
37... Rd1+ {[%clk 0:00:18]} 38. Kh2 {[%clk 0:00:48.9]} 38... Rd2 {[%clk
0:00:19.9]} 39. f4 {[%clk 0:00:49.5]} 39... g5 {[%clk 0:00:17.7]} 40. fxg5+
{[%clk 0:00:47.3]} 40... Kxg5 {[%clk 0:00:19.6]} 41. Nf8 {[%clk 0:00:41.9]}
41... h5 {[%clk 0:00:20]} 42. Nxe6+ {[%clk 0:00:42.2]} 42... Kg6 {[%clk
0:00:21.3]} 43. Rxa7 {[%clk 0:00:41.3]} 43... Rxb2 {[%clk 0:00:21.8]} 44. Nd4
{[%clk 0:00:38.1]} 44... Kg5 {[%clk 0:00:22.4]} 45. Nf3+ {[%clk 0:00:36]} 45...
Kf4 {[%clk 0:00:23.3]} 46. Rh7 {[%clk 0:00:36.4]} 46... Ke3 {[%clk 0:00:23.5]}
47. Rxh5 {[%clk 0:00:37.2]} 47... Rb3 {[%clk 0:00:25.4]} 48. Rh6 {[%clk
0:00:37.5]} 48... Kf2 {[%clk 0:00:25.6]} 49. h4 {[%clk 0:00:38.2]} 49... Kf1
{[%clk 0:00:26.8]} 50. h5 {[%clk 0:00:38.4]} 50... Rb2 {[%clk 0:00:28.2]} 51.
Rg6 {[%clk 0:00:39.5]} 51... Kf2 {[%clk 0:00:27.6]} 52. h6 {[%clk 0:00:40.6]}
52... Rb5 {[%clk 0:00:29.3]} 53. Rg5 {[%clk 0:00:39.2]} 53... Rb3 {[%clk
0:00:21]} 54. h7 {[%clk 0:00:38.2]} 54... Rxc3 {[%clk 0:00:22.2]} 55. h8=Q
{[%clk 0:00:37.9]} 55... Rc2 {[%clk 0:00:21.2]} 56. Qd4+ {[%clk 0:00:38.3]}
56... Kf1 {[%clk 0:00:23.1]} 57. Qd1+ {[%clk 0:00:37.4]} 57... Kf2 {[%clk
0:00:23.7]} 58. Qe1# {[%clk 0:00:38.7]} 1-0

[Event "*** Titled Tuesday Blitz"]
[Site "Chess.com"]
[Date "2019.06.04"]
[Round "1"]
[White "TonRicher"]
[Black "Vuk2000"]
[Result "0-1"]
[WhiteElo "2361"]
[BlackElo "2706"]
[TimeControl "180+2"]
[EndTime "13:09:22 PDT"]
[Termination "Vuk2000 won by resignation"]

1. d4 {[%clk 0:03:01.9]} 1... Nf6 {[%clk 0:02:59.3]} 2. c4 {[%clk 0:03:02.6]}
2... e6 {[%clk 0:02:59.2]} 3. Nf3 {[%clk 0:03:03.3]} 3... b6 {[%clk 0:03:00]} 4.
g3 {[%clk 0:03:04.3]} 4... Ba6 {[%clk 0:03:01.2]} 5. Qa4 {[%clk 0:03:05.1]} 5...
Bb7 {[%clk 0:03:01.9]} 6. Bg2 {[%clk 0:03:06.1]} 6... c5 {[%clk 0:03:03]} 7.
dxc5 {[%clk 0:03:07.1]} 7... Bxc5 {[%clk 0:03:04.4]} 8. O-O {[%clk 0:03:08.2]}
8... O-O {[%clk 0:03:05.2]} 9. Bf4 {[%clk 0:03:06.4]} 9... Na6 {[%clk
0:03:05.7]} 10. Rd1 {[%clk 0:03:05.4]} 10... Be7 {[%clk 0:03:04.9]} 11. Nc3
{[%clk 0:03:04.2]} 11... Nc5 {[%clk 0:03:05.7]} 12. Qc2 {[%clk 0:03:04.2]} 12...
Nfe4 {[%clk 0:03:07.1]} 13. Nxe4 {[%clk 0:03:00.3]} 13... Bxe4 {[%clk
0:02:51.7]} 14. Qd2 {[%clk 0:02:56]} 14... a5 {[%clk 0:02:45.2]} 15. Rac1 {[%clk
0:02:48.6]} 15... Qc8 {[%clk 0:02:43.2]} 16. Bd6 {[%clk 0:02:47.2]} 16... Bxd6
{[%clk 0:02:41.3]} 17. Qxd6 {[%clk 0:02:47.8]} 17... Qb7 {[%clk 0:02:42.5]} 18.
Ne1 {[%clk 0:02:35.6]} 18... Rfd8 {[%clk 0:02:34.4]} 19. b3 {[%clk 0:02:22.9]}
19... Rac8 {[%clk 0:02:22.8]} 20. f3 {[%clk 0:02:10.6]} 20... Bc6 {[%clk
0:02:22.5]} 21. Nd3 {[%clk 0:01:59.6]} 21... Nxd3 {[%clk 0:02:06.3]} 22. Rxd3
{[%clk 0:01:56.3]} 22... Qc7 {[%clk 0:02:07.1]} 23. Rcd1 {[%clk 0:01:52.8]}
23... Qxd6 {[%clk 0:02:04.5]} 24. Rxd6 {[%clk 0:01:52.9]} 24... Kf8 {[%clk
0:02:05.3]} 25. f4 {[%clk 0:01:51.9]} 25... Ke7 {[%clk 0:02:06.3]} 26. e4 {[%clk
0:01:41]} 26... b5 {[%clk 0:02:02.2]} 27. cxb5 {[%clk 0:01:17.1]} 27... Bxb5
{[%clk 0:02:03.1]} 28. R1d2 {[%clk 0:01:15.2]} 28... Rc1+ {[%clk 0:01:56.5]} 29.
Kf2 {[%clk 0:01:15.8]} 29... Rdc8 {[%clk 0:01:54.3]} 30. a4 {[%clk 0:01:04.2]}
30... Bc6 {[%clk 0:01:50.4]} 31. e5 {[%clk 0:01:05.1]} 31... Rc7 {[%clk
0:01:39.3]} 32. Bxc6 {[%clk 0:00:45.3]} 32... R1xc6 {[%clk 0:01:39.7]} 33. Ke3
{[%clk 0:00:46]} 33... Rb7 {[%clk 0:01:32.4]} 34. R2d3 {[%clk 0:00:45.8]} 34...
Rc2 {[%clk 0:01:31.5]} 35. h4 {[%clk 0:00:39.7]} 35... Rb2 {[%clk 0:01:28.5]}
36. h5 {[%clk 0:00:34.3]} 36... h6 {[%clk 0:01:28.2]} 37. g4 {[%clk 0:00:35.2]}
37... Rh2 {[%clk 0:01:14.8]} 38. Kf3 {[%clk 0:00:33]} 38... Ke8 {[%clk 0:01:04]}
39. Kg3 {[%clk 0:00:29.6]} 39... Rb2 {[%clk 0:01:04.6]} 40. Kh4 {[%clk
0:00:27.9]} 40... g6 {[%clk 0:00:46.6]} 41. hxg6 {[%clk 0:00:21.3]} 41... fxg6
{[%clk 0:00:47.5]} 42. f5 {[%clk 0:00:22.6]} 42... gxf5 {[%clk 0:00:26]} 43.
gxf5 {[%clk 0:00:24.5]} 43... exf5 {[%clk 0:00:23.6]} 44. Kh5 {[%clk 0:00:25.9]}
44... R2xb3 {[%clk 0:00:22.5]} 45. Rxd7 {[%clk 0:00:26]} 45... Rxd3 {[%clk
0:00:19.9]} 46. Rxb7 {[%clk 0:00:26.9]} 46... f4 {[%clk 0:00:21.5]} 47. Kg6
{[%clk 0:00:27]} 47... f3 {[%clk 0:00:21.2]} 48. Kf6 {[%clk 0:00:26.7]} 48... f2
{[%clk 0:00:21.2]} 49. Rb8+ {[%clk 0:00:24.1]} 49... Kd7 {[%clk 0:00:21.9]} 50.
e6+ {[%clk 0:00:25.7]} 50... Kc7 {[%clk 0:00:21.5]} 51. Rb1 {[%clk 0:00:26.3]}
51... Rf3+ {[%clk 0:00:22.4]} 52. Kg6 {[%clk 0:00:12.2]} 52... f1=Q {[%clk
0:00:23.5]} 0-1

[Event "*** Titled Tuesday Blitz"]
[Site "Chess.com"]
[Date "2019.06.04"]
[Round "1"]
[White "Vusatiuk_Vladimir"]
[Black "LazovT"]
[Result "0-1"]
[WhiteElo "2210"]
[BlackElo "2580"]
[TimeControl "180+2"]
[EndTime "13:09:31 PDT"]
[Termination "LazovT won by resignation"]

1. e4 {[%clk 0:02:59.5]} 1... c5 {[%clk 0:02:52.6]} 2. Nf3 {[%clk 0:02:57.3]}
2... Nc6 {[%clk 0:02:52.4]} 3. Bb5 {[%clk 0:02:57.1]} 3... g6 {[%clk 0:02:52.6]}
4. Bxc6 {[%clk 0:02:57.2]} 4... bxc6 {[%clk 0:02:54.5]} 5. c3 {[%clk 0:02:56.8]}
5... Bg7 {[%clk 0:02:53.7]} 6. d4 {[%clk 0:02:55.9]} 6... cxd4 {[%clk
0:02:54.9]} 7. cxd4 {[%clk 0:02:55.6]} 7... d6 {[%clk 0:02:56.5]} 8. Nc3 {[%clk
0:02:47.8]} 8... Bg4 {[%clk 0:02:44.7]} 9. Be3 {[%clk 0:02:36.6]} 9... Qb6
{[%clk 0:02:41.8]} 10. Qd2 {[%clk 0:02:16.1]} 10... Rb8 {[%clk 0:02:35.6]} 11.
Rb1 {[%clk 0:01:56]} 11... Qa6 {[%clk 0:02:32]} 12. h3 {[%clk 0:01:49.9]} 12...
Bxf3 {[%clk 0:02:29.6]} 13. gxf3 {[%clk 0:01:51.8]} 13... Nf6 {[%clk 0:02:30.7]}
14. Bh6 {[%clk 0:01:48]} 14... O-O {[%clk 0:02:31.1]} 15. Bxg7 {[%clk
0:01:48.9]} 15... Kxg7 {[%clk 0:02:33]} 16. h4 {[%clk 0:01:50.1]} 16... Nh5
{[%clk 0:02:25.9]} 17. Rg1 {[%clk 0:01:42.3]} 17... h6 {[%clk 0:01:59.6]} 18. f4
{[%clk 0:01:39]} 18... f5 {[%clk 0:01:47.6]} 19. e5 {[%clk 0:01:39.7]} 19... Kh7
{[%clk 0:01:34.2]} 20. Qe2 {[%clk 0:01:10.1]} 20... Qxe2+ {[%clk 0:01:33.8]} 21.
Nxe2 {[%clk 0:01:12]} 21... c5 {[%clk 0:01:34.6]} 22. dxc5 {[%clk 0:01:08.1]}
22... dxc5 {[%clk 0:01:36.2]} 23. Kd2 {[%clk 0:01:07.5]} 23... Rb4 {[%clk
0:01:35.1]} 24. Ke3 {[%clk 0:01:03.9]} 24... Rfb8 {[%clk 0:01:32.6]} 25. Rgc1
{[%clk 0:00:46.2]} 25... Re4+ {[%clk 0:01:08.5]} 26. Kf3 {[%clk 0:00:45.4]}
26... c4 {[%clk 0:01:10.4]} 27. b3 {[%clk 0:00:43.2]} 27... cxb3 {[%clk
0:01:10.5]} 28. Rxb3 {[%clk 0:00:45.1]} 28... Rxb3+ {[%clk 0:01:08.8]} 29. axb3
{[%clk 0:00:47]} 29... g5 {[%clk 0:01:01.4]} 30. hxg5 {[%clk 0:00:46.4]} 30...
hxg5 {[%clk 0:01:03.3]} 31. fxg5 {[%clk 0:00:46.3]} 31... Rxe5 {[%clk
0:01:02.3]} 32. Rc7 {[%clk 0:00:45.3]} 32... a5 {[%clk 0:01:01.6]} 33. Nf4
{[%clk 0:00:45.1]} 33... Ng7 {[%clk 0:00:41.1]} 34. g6+ {[%clk 0:00:24.7]} 34...
Kh6 {[%clk 0:00:39.6]} 35. Rc1 {[%clk 0:00:26.1]} 35... Kg5 {[%clk 0:00:36.5]}
36. Rg1+ {[%clk 0:00:21.9]} 36... Kf6 {[%clk 0:00:37.5]} 37. Rb1 {[%clk
0:00:18.7]} 37... Rb5 {[%clk 0:00:37.7]} 38. Ke2 {[%clk 0:00:12.8]} 38... e5
{[%clk 0:00:38.6]} 39. Nd3 {[%clk 0:00:12.3]} 39... Kxg6 {[%clk 0:00:38.4]} 40.
b4 {[%clk 0:00:13.8]} 40... Kf6 {[%clk 0:00:37.6]} 41. Rb2 {[%clk 0:00:13.6]}
41... e4 {[%clk 0:00:29.4]} 42. Nf4 {[%clk 0:00:13.1]} 42... Kg5 {[%clk
0:00:28.4]} 43. Nh3+ {[%clk 0:00:06.1]} 43... Kg4 {[%clk 0:00:28.8]} 44. Ng1
{[%clk 0:00:06.6]} 44... Ne6 {[%clk 0:00:29.3]} 45. f3+ {[%clk 0:00:05]} 45...
Kf4 {[%clk 0:00:28.4]} 46. fxe4 {[%clk 0:00:05.7]} 46... fxe4 {[%clk 0:00:30]}
47. Ke1 {[%clk 0:00:04.4]} 47... axb4 {[%clk 0:00:30.5]} 48. Ne2+ {[%clk
0:00:03.7]} 48... Ke5 {[%clk 0:00:31.3]} 49. Rb3 {[%clk 0:00:05.2]} 49... Nd4
{[%clk 0:00:32.2]} 50. Nxd4 {[%clk 0:00:06.1]} 50... Kxd4 {[%clk 0:00:34.1]} 51.
Ke2 {[%clk 0:00:08]} 51... Kc4 {[%clk 0:00:34.9]} 52. Rb1 {[%clk 0:00:06.2]}
52... b3 {[%clk 0:00:35.8]} 53. Ke3 {[%clk 0:00:06.2]} 53... b2 {[%clk
0:00:35.6]} 54. Kxe4 {[%clk 0:00:06.5]} 54... Kc3 {[%clk 0:00:36.9]} 0-1

[Event "*** Titled Tuesday Blitz"]
[Site "Chess.com"]
[Date "2019.06.04"]
[Round "1"]
[White "albi1999"]
[Black "VerdeNotte"]
[Result "1/2-1/2"]
[WhiteElo "2445"]
[BlackElo "2810"]
[TimeControl "180+2"]
[EndTime "13:09:50 PDT"]
[Termination "Game drawn by agreement"]

1. d4 {[%clk 0:03:01.2]} 1... Nf6 {[%clk 0:03:00.2]} 2. c4 {[%clk 0:03:01.4]}
2... c5 {[%clk 0:02:59.9]} 3. d5 {[%clk 0:03:02.4]} 3... b5 {[%clk 0:03:00.8]}
4. cxb5 {[%clk 0:03:04.3]} 4... a6 {[%clk 0:03:02]} 5. bxa6 {[%clk 0:03:05.4]}
5... g6 {[%clk 0:03:02.9]} 6. Nc3 {[%clk 0:03:06.8]} 6... Bxa6 {[%clk
0:03:02.5]} 7. e4 {[%clk 0:03:07.6]} 7... Bxf1 {[%clk 0:03:03.2]} 8. Kxf1 {[%clk
0:03:09.5]} 8... d6 {[%clk 0:03:04.7]} 9. Nf3 {[%clk 0:03:10.3]} 9... Bg7 {[%clk
0:03:06.1]} 10. g3 {[%clk 0:03:11.4]} 10... O-O {[%clk 0:03:07.2]} 11. Kg2
{[%clk 0:03:12.6]} 11... Nbd7 {[%clk 0:03:08.7]} 12. a4 {[%clk 0:03:13.8]} 12...
Ra6 {[%clk 0:03:09.7]} 13. Re1 {[%clk 0:03:14.1]} 13... Qa8 {[%clk 0:03:10.4]}
14. Ra3 {[%clk 0:03:14.1]} 14... Rb8 {[%clk 0:03:10.7]} 15. Nb5 {[%clk
0:03:09.8]} 15... Rb7 {[%clk 0:02:59.8]} 16. Qc2 {[%clk 0:02:53.6]} 16... Ne8
{[%clk 0:02:52.4]} 17. Bg5 {[%clk 0:02:42.4]} 17... Ne5 {[%clk 0:02:29.9]} 18.
Nd2 {[%clk 0:02:37]} 18... Nc7 {[%clk 0:01:56.7]} 19. Nxc7 {[%clk 0:02:30.9]}
19... Rxc7 {[%clk 0:01:58.6]} 20. b3 {[%clk 0:02:15.6]} 20... Rb6 {[%clk
0:01:48.6]} 21. a5 {[%clk 0:01:58.7]} 21... Ra6 {[%clk 0:01:42.7]} 22. Rea1
{[%clk 0:01:59.1]} 22... Rca7 {[%clk 0:01:37]} 23. Bf4 {[%clk 0:01:29.3]} 23...
Nd7 {[%clk 0:01:32.5]} 24. R1a2 {[%clk 0:01:14.2]} 24... Rxa5 {[%clk 0:01:33.7]}
25. Rxa5 {[%clk 0:01:16]} 25... Rxa5 {[%clk 0:01:35.3]} 26. Rxa5 {[%clk
0:01:16.7]} 26... Qxa5 {[%clk 0:01:37.2]} 27. Nc4 {[%clk 0:01:17.9]} 27... Qa1
{[%clk 0:01:33.6]} 28. Bg5 {[%clk 0:01:08.8]} 28... Kf8 {[%clk 0:01:30.6]} 29.
Bd2 {[%clk 0:01:06.5]} 29... h6 {[%clk 0:01:23.6]} 30. b4 {[%clk 0:01:02.8]}
30... cxb4 {[%clk 0:01:20.2]} 31. Bxb4 {[%clk 0:01:04.7]} 31... Kg8 {[%clk
0:01:18.4]} 32. Na5 {[%clk 0:00:58.2]} 32... Bf6 {[%clk 0:01:06.9]} 33. Nc6
{[%clk 0:00:56.8]} 33... Qa6 {[%clk 0:00:44.1]} 34. Bd2 {[%clk 0:00:50.7]} 34...
Kg7 {[%clk 0:00:42.5]} 35. Be3 {[%clk 0:00:48.7]} 35... Ne5 {[%clk 0:00:37.6]}
36. Bd4 {[%clk 0:00:43.6]} 36... Qc4 {[%clk 0:00:30.9]} 37. Qxc4 {[%clk
0:00:40.7]} 37... Nxc4 {[%clk 0:00:32.8]} 38. f3 {[%clk 0:00:37.3]} 38... Bxd4
{[%clk 0:00:31.1]} 39. Nxd4 {[%clk 0:00:39.2]} 39... Kf6 {[%clk 0:00:32.3]} 40.
Kf2 {[%clk 0:00:39.1]} 40... e6 {[%clk 0:00:33.4]} 41. dxe6 {[%clk 0:00:39]}
41... fxe6 {[%clk 0:00:35.3]} 42. Ke2 {[%clk 0:00:39.9]} 42... Ke5 {[%clk
0:00:29.3]} 43. Nc6+ {[%clk 0:00:38.9]} 43... Kf6 {[%clk 0:00:30.6]} 44. Kd3
{[%clk 0:00:36.9]} 44... Ne5+ {[%clk 0:00:31.2]} 45. Nxe5 {[%clk 0:00:37.9]}
45... Kxe5 {[%clk 0:00:33.1]} 46. f4+ {[%clk 0:00:36.9]} 46... Kf6 {[%clk
0:00:34.4]} 47. Kd4 {[%clk 0:00:38.4]} 47... g5 {[%clk 0:00:34]} 48. h3 {[%clk
0:00:30.5]} 48... gxf4 {[%clk 0:00:25.9]} 49. gxf4 {[%clk 0:00:31.4]} 49... Kg6
{[%clk 0:00:27.1]} 50. Ke3 {[%clk 0:00:14.9]} 50... Kf7 {[%clk 0:00:26.8]} 51.
Kf3 {[%clk 0:00:15.9]} 51... Kf6 {[%clk 0:00:25.1]} 52. h4 {[%clk 0:00:14]}
52... h5 {[%clk 0:00:20]} 53. Ke3 {[%clk 0:00:14.7]} 53... d5 {[%clk 0:00:18]}
54. Kd4 {[%clk 0:00:15.2]} 54... Kg6 {[%clk 0:00:16.6]} 55. Ke5 {[%clk
0:00:15.7]} 55... dxe4 {[%clk 0:00:17]} 56. Kxe4 {[%clk 0:00:17.6]} 56... Kf6
{[%clk 0:00:18.3]} 57. Ke3 {[%clk 0:00:18.8]} 57... e5 {[%clk 0:00:18.5]} 58.
Ke4 {[%clk 0:00:19.1]} 58... exf4 {[%clk 0:00:18.4]} 59. Kxf4 {[%clk 0:00:21]}
59... Kg6 {[%clk 0:00:19.8]} 60. Ke5 {[%clk 0:00:21.6]} 1/2-1/2